fUST/lending_fUST_20250614
["ID","MTS","AMOUNT","RATE_DAILY","PERIOD"]
[365756852,1749882641997,-5000.0,0.00020884,2]
[365756853,1749882642007,-336.40948354,0.00021095,4]
[365756854,1749882642016,-460.0,0.00021095,4]
[365756855,1749882642025,-460.0,0.00021095,4]
[365756856,1749882642034,-460.0,0.00021369,4]
[365756857,1749882642158,-460.0,0.00021369,4]
[365756858,1749882642168,-460.0,0.00021643,4]
[365756859,1749882642182,-374.13695304,0.00021643,4]
[365756860,1749882642192,-460.0,0.00021917,4]
[365756861,1749882642202,-43257.44782154,0.00022,2]
[365756862,1749882642212,-160.0,0.00022,7]
[365756863,1749882642222,-315.3423008,0.00022,7]
[365756864,1749882642231,-116049.04734228,0.00022,7]
[365756865,1749882642243,-685.88,0.00022,7]
[365756866,1749882642255,-19482.79265772,0.00022,7]
[365756867,1749882642267,-166.0,0.00022,2]
[365756868,1749882642277,-1227.94362035,0.00022003,6]
[365756869,1749882642286,-180.04119129,0.00022054,2]
[365756870,1749882642295,-151.0,0.000221,8]
[365756871,1749882642305,-1227.94362035,0.00022107,6]
[365756872,1749882642314,-5563.87,0.00022176,2]
[365756873,1749882642323,-160.0,0.00022187,2]
[365756874,1749882642344,-460.0,0.00022191,4]
[365756875,1749882642355,-781.18,0.00022191,4]
[365756876,1749882642366,-460.0,0.00022191,4]
[365756877,1749882642375,-460.0,0.00022191,2]
[365756878,1749882642385,-460.0,0.00022191,4]
[365756879,1749882642395,-460.0,0.00022191,4]
[365756880,1749882642404,-591.11020773,0.00022191,4]
[365756881,1749882642414,-605.17,0.00022191,4]
[365756882,1749882642424,-460.0,0.00022191,4]
[365756883,1749882642434,-500.85442194,0.00022191,4]
[365756884,1749882642447,-197.41557806,0.00022191,4]
[365756885,1749882642456,-205.56155965,0.00022191,4]
[365756887,1749882642469,-36.38035579,0.00022191,4]
[365756889,1749882642484,-460.0,0.00022191,4]
[365756891,1749882642494,-308.00043121,0.00022191,4]
[365756892,1749882642506,-151.99956879,0.00022191,4]
[365756893,1749882642516,-784.69580551,0.00022191,4]
[365756894,1749882642528,-13.86419449,0.00022191,4]
[365756895,1749882642538,-460.0,0.00022191,4]
[365756896,1749882642548,-3296.69,0.00022191,4]
[365756897,1749882642558,-460.0,0.00022191,4]
[365756898,1749882642568,-460.0,0.00022191,4]
[365756899,1749882642577,-615.77,0.00022191,4]
[365756900,1749882642587,-460.0,0.00022191,4]
[365756901,1749882642597,-460.0,0.00022191,4]
[365756902,1749882642607,-460.0,0.00022191,4]
[365756903,1749882642617,-1145.05,0.00022191,4]
[365756904,1749882642627,-648.49,0.00022191,4]
[365756905,1749882642638,-460.0,0.00022191,4]
[365756906,1749882642648,-460.0,0.00022191,4]
[365756907,1749882642658,-1035.65,0.00022191,4]
[365756908,1749882642668,-460.0,0.00022191,4]
[365756909,1749882642678,-460.0,0.00022191,4]
[365756910,1749882642688,-460.0,0.00022191,4]
[365756911,1749882642699,-1227.94362035,0.0002221,6]
[365756912,1749882642708,-160.0,0.00022246,2]
[365756913,1749882642719,-315.3423008,0.00022246,2]
[365756914,1749882642729,-12533.30537164,0.00022246,2]
[365756915,1749882642739,-213.28201367,0.00022246,2]
[365756916,1749882642748,-160.0,0.00022246,2]
[365756917,1749882642757,-160.0,0.00022246,2]
[365756918,1749882642766,-160.0,0.00022246,2]
[365756919,1749882642775,-160.0,0.00022246,2]
[365756921,1749882642785,-835.41710878,0.00022246,2]
[365756923,1749882642795,-160.0,0.00022246,2]
[365756925,1749882642804,-424.40141186,0.00022246,2]
[365756927,1749882642814,-845.10789306,0.00022249,2]
[365756929,1749882642823,-151.0,0.000223,6]
[365756931,1749882642833,-1227.94362035,0.00022314,7]
[365756933,1749882642842,-4043.11,0.000224,7]
[365756935,1749882642852,-1227.94362035,0.00022417,7]
[365756937,1749882642862,-160.0,0.00022464,2]
[365756938,1749882642871,-460.0,0.00022465,4]
[365756939,1749882642880,-781.18,0.00022465,4]
[365756940,1749882642890,-460.0,0.00022465,4]
[365756941,1749882642900,-212.58,0.00022465,2]
[365756942,1749882642910,-460.0,0.00022465,4]
[365756943,1749882642920,-460.0,0.00022465,4]
[365756944,1749882642930,-605.17,0.00022465,4]
[365756945,1749882642939,-460.0,0.00022465,4]
[365756946,1749882642949,-698.27,0.00022465,4]
[365756947,1749882642958,-460.0,0.00022465,4]
[365756948,1749882642967,-460.0,0.00022465,4]
[365756949,1749882642978,-798.56,0.00022465,4]
[365756950,1749882642988,-460.0,0.00022465,4]
[365756951,1749882642998,-3296.69,0.00022465,4]
[365756952,1749882643008,-460.0,0.00022465,4]
[365756953,1749882643017,-460.0,0.00022465,4]
[365756954,1749882643027,-615.77,0.00022465,4]
[365756955,1749882643037,-460.0,0.00022465,4]
[365756956,1749882643046,-460.0,0.00022465,4]
[365756957,1749882643056,-512.02144995,0.00022465,4]
[365756958,1749882643064,-1145.05,0.00022465,4]
[365756959,1749882643074,-648.49,0.00022465,4]
[365756960,1749882643084,-460.0,0.00022465,4]
[365756961,1749882643093,-460.0,0.00022465,4]
[365756962,1749882643102,-1035.65,0.00022465,4]
[365756963,1749882643112,-460.0,0.00022465,4]
[365756964,1749882643121,-460.0,0.00022465,4]
[365756965,1749882643131,-460.0,0.00022465,4]
[365756966,1749882643140,-151.0,0.000225,8]
[365756967,1749882643149,-160.069131,0.00022505,2]
[365756968,1749882643159,-1227.94362035,0.00022521,7]
[365756969,1749882643168,-436.87018672,0.00022548,2]
[365756970,1749882643178,-902.5877282,0.00022558,2]
[365756971,1749882643187,-970.21,0.000226,7]
[365756972,1749882643197,-1227.94362035,0.00022624,7]
[365756974,1749882643206,-151.0,0.000227,9]
[365756976,1749882643216,-1227.94362035,0.00022728,7]
[365756978,1749882643226,-460.0,0.00022739,4]
[365756980,1749882643235,-781.18,0.00022739,4]
[365756982,1749882643245,-460.0,0.00022739,4]
[365756984,1749882643254,-460.0,0.00022739,4]
[365756986,1749882643264,-460.0,0.00022739,4]
[365756988,1749882643275,-605.17,0.00022739,4]
[365756989,1749882643285,-698.27,0.00022739,4]
[365756990,1749882643294,-460.0,0.00022739,4]
[365756991,1749882643303,-460.0,0.00022739,4]
[365756992,1749882643314,-393.0698166,0.00022739,4]
[365756993,1749882643324,-798.56,0.00022739,4]
[365756994,1749882643334,-460.0,0.00022739,4]
[365756995,1749882643343,-3296.69,0.00022739,4]
[365756996,1749882643353,-460.0,0.00022739,4]
[365756997,1749882643363,-460.0,0.00022739,4]
[365756998,1749882643372,-615.77,0.00022739,4]
[365756999,1749882643382,-498.65377666,0.00022739,4]
[365757000,1749882643392,-460.0,0.00022739,4]
[365757001,1749882643401,-1145.05,0.00022739,4]
[365757002,1749882643412,-648.49,0.00022739,4]
[365757003,1749882643424,-460.0,0.00022739,4]
[365757004,1749882643434,-460.0,0.00022739,4]
[365757005,1749882643444,-1035.65,0.00022739,4]
[365757006,1749882643454,-460.0,0.00022739,4]
[365757007,1749882643463,-460.0,0.00022739,4]
[365757008,1749882643473,-460.0,0.00022739,4]
[365757009,1749882643483,-1227.94362035,0.00022831,8]
[365757010,1749882643493,-500.0,0.00022871,2]
[365757011,1749882643503,-500.0,0.00022871,2]
[365757012,1749882643513,-500.79880931,0.0002288,2]
[365757013,1749882643522,-500.0,0.0002288,2]
[365757014,1749882643532,-500.0,0.0002288,2]
[365757015,1749882643542,-500.0,0.0002288,2]
[365757016,1749882643551,-500.0,0.0002288,2]
[365757017,1749882643561,-501.54253158,0.0002288,2]
[365757018,1749882643571,-242.91572388,0.0002288,2]
[365757019,1749882643580,-500.0,0.0002288,2]
[365757020,1749882643590,-500.76973816,0.0002288,2]
[365757021,1749882643600,-600.0,0.0002288,2]
[365757022,1749882643610,-502.21576639,0.00022888,2]
[365757023,1749882643620,-500.0,0.00022888,2]
[365757024,1749882643631,-503.42492212,0.00022888,2]
[365757025,1749882643641,-151.0,0.000229,7]
[365757026,1749882643651,-207.4,0.00022922,2]
[365757027,1749882643661,-1750.456,0.00022922,2]
[365757028,1749882643671,-1227.94362035,0.00022934,8]
[365757029,1749882643682,-168.0,0.00022938,2]
[365757030,1749882643691,-420.0,0.00022943,2]
[365757031,1749882643701,-509.09225624,0.00022963,2]
[365757032,1749882643711,-11984.0096732,0.00022991,2]
[365757033,1749882643720,-5963.37362922,0.00023,2]
[365757034,1749882643730,-826.81317095,0.00023,2]
[365757035,1749882643740,-6020.85196694,0.00023,3]
[365757036,1749882643750,-15651.68263261,0.00023,2]
[365757037,1749882643759,-32090.10196026,0.00023,20]
[365757038,1749882643769,-255.86,0.00023013,4]
[365757039,1749882643779,-781.18,0.00023013,4]
[365757040,1749882643790,-460.0,0.00023013,4]
[365757041,1749882643800,-460.0,0.00023013,4]
[365757042,1749882643810,-605.17,0.00023013,4]
[365757043,1749882643820,-698.27,0.00023013,4]
[365757044,1749882643831,-460.0,0.00023013,4]
[365757045,1749882643842,-460.0,0.00023013,4]
[365757046,1749882643853,-798.56,0.00023013,4]
[365757047,1749882643863,-317.22701933,0.00023013,4]
[365757048,1749882643874,-3296.69,0.00023013,4]
[365757049,1749882643884,-430.0,0.00023013,4]
[365757050,1749882643894,-479.23088691,0.00023013,4]
[365757051,1749882643905,-615.77,0.00023013,4]
[365757052,1749882643915,-460.0,0.00023013,4]
[365757053,1749882643925,-1145.05,0.00023013,4]
[365757054,1749882643935,-648.49,0.00023013,4]
[365757055,1749882643945,-460.0,0.00023013,4]
[365757056,1749882643955,-460.0,0.00023013,4]
[365757057,1749882643964,-1035.65,0.00023013,4]
[365757058,1749882643974,-460.0,0.00023013,4]
[365757059,1749882643984,-460.0,0.00023013,4]
[365757060,1749882643993,-460.0,0.00023013,4]
[365757061,1749882644003,-166.0,0.00023014,7]
[365757062,1749882644013,-1227.94362035,0.00023038,8]
[365757063,1749882644022,-167.63761845,0.00023041,2]
[365757064,1749882644032,-165.57654101,0.00023041,2]
[365757065,1749882644042,-500.0,0.00023073,2]
[365757066,1749882644056,-97312.64,0.000231,2]
[365757067,1749882644066,-152.269186,0.000231,7]
[365757068,1749882644075,-136217.72,0.000231,7]
[365757069,1749882644185,-7418.49,0.00023141,2]
[365757070,1749882644195,-1227.94362035,0.00023141,8]
[365757071,1749882644205,-1227.94362035,0.00023245,8]
[365757072,1749882644214,-781.18,0.00023287,4]
[365757073,1749882644224,-546.30035663,0.00023287,4]
[365757074,1749882644234,-460.0,0.00023287,4]
[365757075,1749882644243,-605.17,0.00023287,4]
[365757076,1749882644253,-165.13541106,0.00023287,4]
[365757077,1749882644263,-698.27,0.00023287,4]
[365757078,1749882644275,-460.0,0.00023287,4]
[365757079,1749882644285,-798.56,0.00023287,4]
[365757080,1749882644296,-3296.69,0.00023287,4]
[365757081,1749882644307,-615.77,0.00023287,4]
[365757082,1749882644317,-460.0,0.00023287,4]
[365757083,1749882644326,-1145.05,0.00023287,4]
[365757084,1749882644335,-648.49,0.00023287,4]
[365757085,1749882644346,-460.0,0.00023287,4]
[365757086,1749882644357,-460.0,0.00023287,4]
[365757087,1749882644366,-1035.65,0.00023287,4]
[365757088,1749882644377,-460.0,0.00023287,4]
[365757089,1749882644388,-460.0,0.00023287,4]
[365757090,1749882644398,-460.0,0.00023287,4]
[365757091,1749882644408,-436.87018672,0.00023324,2]
[365757092,1749882644418,-165.57654101,0.00023342,2]
[365757093,1749882644428,-1227.94362035,0.00023348,9]
[365757094,1749882644437,-9012.8554264,0.0002335,2]
[365757095,1749882644448,-168.0,0.000234,2]
[365757096,1749882644458,-1000.0,0.00023419,2]
[365757097,1749882644468,-1000.0,0.00023419,2]
[365757098,1749882644477,-1000.0,0.00023428,2]
[365757099,1749882644487,-1000.0,0.00023428,2]
[365757100,1749882644496,-1000.0,0.00023428,2]
[365757101,1749882644506,-1000.0,0.00023428,2]
[365757102,1749882644515,-1000.0,0.00023428,2]
[365757103,1749882644524,-1200.0,0.00023428,2]
[365757104,1749882644534,-1227.94362035,0.00023452,9]
[365757105,1749882644544,-4043.11,0.000235,7]
[365757106,1749882644553,-600.0,0.0002352,2]
[365757107,1749882644563,-168.0,0.00023553,2]
[365757108,1749882644573,-1227.94362035,0.00023555,9]
[365757109,1749882644583,-781.18,0.00023561,4]
[365757110,1749882644593,-460.0,0.00023561,4]
[365757111,1749882644602,-605.17,0.00023561,4]
[365757112,1749882644611,-698.27,0.00023561,4]
[365757113,1749882644622,-460.0,0.00023561,4]
[365757114,1749882644631,-798.56,0.00023561,4]
[365757115,1749882644641,-3296.69,0.00023561,4]
[365757116,1749882644651,-615.77,0.00023561,4]
[365757117,1749882644660,-460.0,0.00023561,4]
[365757118,1749882644670,-1145.05,0.00023561,4]
[365757119,1749882644679,-648.49,0.00023561,4]
[365757120,1749882644689,-460.0,0.00023561,4]
[365757121,1749882644698,-460.0,0.00023561,4]
[365757122,1749882644708,-1035.65,0.00023561,4]
[365757123,1749882644718,-460.0,0.00023561,4]
[365757124,1749882644728,-460.0,0.00023561,4]
[365757125,1749882644738,-460.0,0.00023561,4]
[365757126,1749882644748,-49320.5345563,0.000236,2]
[365757127,1749882644758,-200.0,0.00023616,2]
[365757128,1749882644768,-165.57654101,0.00023644,2]
[365757129,1749882644778,-1227.94362035,0.00023659,9]
[365757130,1749882644789,-200.0,0.00023684,2]
[365757131,1749882644798,-970.21,0.000237,7]
[365757132,1749882644808,-1935.20786562,0.000237,2]
[365757133,1749882644817,-1227.94362035,0.00023762,9]
[365757134,1749882644827,-1063.24869493,0.00023765,2]
[365757135,1749882644836,-500.0,0.00023773,2]
[365757136,1749882644846,-501.06245016,0.00023773,2]
[365757137,1749882644855,-500.0,0.00023773,2]
[365757138,1749882644865,-502.04104999,0.00023773,2]
[365757139,1749882644875,-501.19077422,0.00023773,2]
[365757140,1749882644885,-509.52386993,0.00023773,2]
[365757141,1749882644895,-152.84253909,0.00023773,2]
[365757142,1749882644905,-500.0,0.00023773,2]
[365757143,1749882644915,-33025.88183373,0.0002378,2]
[365757144,1749882644924,-69926.47147394,0.0002378,2]
[365757145,1749882644934,-565346.33253113,0.0002378,5]
[365757146,1749882644948,-2023.41,0.000238,2]
[365757147,1749882644958,-13366.24786553,0.000238,2]
[365757148,1749882644968,-335626.90417057,0.000238,3]
[365757149,1749882644978,-229.82479369,0.000238,3]
[365757150,1749882644988,-1935.20786553,0.00023829,2]
[365757151,1749882644998,-160.0,0.00023834,2]
[365757152,1749882645009,-781.18,0.00023835,4]
[365757153,1749882645019,-460.0,0.00023835,4]
[365757154,1749882645030,-605.17,0.00023835,4]
[365757155,1749882645041,-698.27,0.00023835,4]
[365757156,1749882645052,-460.0,0.00023835,4]
[365757157,1749882645062,-798.56,0.00023835,4]
[365757158,1749882645073,-3296.69,0.00023835,4]
[365757159,1749882645083,-615.77,0.00023835,4]
[365757160,1749882645093,-460.0,0.00023835,4]
[365757161,1749882645102,-1145.05,0.00023835,4]
[365757162,1749882645112,-648.49,0.00023835,4]
[365757163,1749882645122,-373.68,0.00023835,4]
[365757164,1749882645132,-460.0,0.00023835,4]
[365757165,1749882645141,-1035.65,0.00023835,4]
[365757166,1749882645151,-460.0,0.00023835,4]
[365757167,1749882645161,-460.0,0.00023835,4]
[365757168,1749882645171,-460.0,0.00023835,4]
[365757169,1749882645180,-1227.94362035,0.00023866,10]
[365757170,1749882645190,-160.0,0.00023888,2]
[365757171,1749882645200,-229.82479369,0.00023888,2]
[365757172,1749882645210,-653.0,0.00023897,2]
[365757173,1749882645219,-2160.0,0.00023897,2]
[365757174,1749882645229,-405.0,0.00023897,2]
[365757175,1749882645238,-587.0,0.00023928,2]
[365757176,1749882645248,-168.0,0.00023929,2]
[365757177,1749882645258,-501.91821307,0.0002394,9]
[365757178,1749882645271,-1935.20786553,0.00023958,2]
[365757179,1749882645280,-503.07374701,0.0002396,9]
[365757180,1749882645290,-516.47411252,0.00023967,2]
[365757181,1749882645300,-1135.84310012,0.00023967,2]
[365757182,1749882645311,-1227.94362035,0.00023969,10]
[365757183,1749882645320,-501.16145131,0.00023976,2]
[365757184,1749882645330,-1500.0,0.00023976,2]
[365757185,1749882645341,-1500.0,0.00023976,2]
[365757186,1749882645351,-1500.0,0.00023976,2]
[365757187,1749882645361,-1500.0,0.00023976,2]
[365757188,1749882645371,-1800.0,0.00023976,2]
[365757189,1749882645381,-839.8466164,0.00024,2]
[365757190,1749882645390,-160.0,0.00024,7]
[365757191,1749882645400,-160.0,0.00024,7]
[365757192,1749882645409,-90569.19482782,0.00024,42]
[365757193,1749882645419,-607.85222908,0.00024,2]
[365757194,1749882645435,-5456.81108298,0.00024,2]
[365757195,1749882645463,-742.14684643,0.00024,2]
[365757268,1749882646582,-500.0,0.00021095,4]
[365757269,1749882646591,-500.0,0.00021095,4]
[365757272,1749882646601,-500.0,0.00021095,4]
[365757273,1749882646611,-424.02566648,0.00021095,4]
[365757276,1749882646624,-75.97433352,0.00021095,4]
[365757278,1749882646632,-440.0,0.00021095,4]
[365757280,1749882646642,-500.0,0.00021095,4]
[365757282,1749882646651,-500.0,0.00021095,4]
[365757284,1749882646660,-500.0,0.00021095,4]
[365757286,1749882646669,-500.0,0.00021095,4]
[365757288,1749882646678,-500.0,0.00021095,4]
[365757290,1749882646687,-151.0,0.00022054,2]
[365757292,1749882646697,-253.00852025,0.00022081,2]
[365757294,1749882646707,-151.0,0.000231,7]
[365757296,1749882646716,-160.0,0.00023852,2]
[365757298,1749882646726,-13363.20011048,0.00024,2]
[365757300,1749882646738,-2426.81857954,0.00024,2]
[365757332,1749882647041,-500.0,0.00021095,4]
[365757334,1749882647051,-1663.98628389,0.00024,2]
[365757336,1749882647062,-400.0,0.00024,2]
[365757528,1749882649017,201.23428027,0.0002009,2]
[365757529,1749882657753,192.983163,0.00013699,2]
[365757530,1749882657960,192.983163,0.00020187,2]
[365757532,1749882674039,632.0020875,0.0002047,2]
[365757533,1749882742372,2043.8978,0.00020192,2]
[365757534,1749882840068,4734.49333568,0.0002,2]
[365757535,1749882840092,265.50666432,0.0002,2]
[365757537,1749882855439,4955.62433568,0.0002,2]
[365757538,1749882855463,44.37566432,0.0002,2]
[365757541,1749882867072,-2030.1887686,0.00020192,2]
[365757542,1749882867093,-1616.66,0.00020284,2]
[365757543,1749882867113,-4886.39886923,0.0002094,2]
[365757544,1749882867134,-500.0,0.00020964,2]
[365757545,1749882867157,-300.0,0.00021094,2]
[365757546,1749882867180,-500.0,0.00021095,4]
[365757547,1749882867201,-547.28691719,0.00021095,4]
[365757548,1749882867222,-460.0,0.00021095,4]
[365757549,1749882867241,-440.0,0.00021095,4]
[365757550,1749882867263,-460.0,0.00021095,4]
[365757551,1749882867284,-440.0,0.00021095,4]
[365757552,1749882867307,-440.0,0.00021095,4]
[365757553,1749882867327,-440.0,0.00021095,4]
[365757554,1749882867348,-440.0,0.00021095,4]
[365757555,1749882867368,-433.32882922,0.00021095,4]
[365757556,1749882867390,-440.0,0.00021095,4]
[365757557,1749882867411,-440.0,0.00021095,4]
[365757558,1749882867431,-186.13661576,0.00021095,4]
[365757559,1749882870748,2659.48685566,0.0002,2]
[365757562,1749882918479,-171.1923859,0.00020376,2]
[365757563,1749882918502,-624.34772305,0.00020889,2]
[365757564,1749882918523,-272.31703965,0.00020982,2]
[365757565,1749882918544,-300.0,0.00021094,2]
[365757566,1749882918568,-253.86338424,0.00021095,4]
[365757567,1749882918589,-430.0,0.00021095,4]
[365757568,1749882918610,-440.0,0.00021095,4]
[365757569,1749882918632,-460.0,0.00021095,4]
[365757570,1749882918654,-460.0,0.00021095,4]
[365757571,1749882918675,-440.0,0.00021095,4]
[365757572,1749882918695,-440.0,0.00021095,4]
[365757573,1749882918717,-460.0,0.00021095,4]
[365757574,1749882918739,-460.0,0.00021095,4]
[365757575,1749882918762,-460.0,0.00021095,4]
[365757576,1749882918784,-440.0,0.00021095,4]
[365757577,1749882918807,-440.0,0.00021095,4]
[365757578,1749882918831,-735.83,0.00021095,4]
[365757579,1749882918853,-430.0,0.00021095,4]
[365757580,1749882918875,-430.0,0.00021095,4]
[365757581,1749882918899,-460.0,0.00021095,4]
[365757582,1749882918920,-276.50556625,0.00021095,4]
[365757583,1749882918944,-481.15,0.00021095,4]
[365757584,1749882918966,-460.0,0.00021095,4]
[365757585,1749882918988,-174.79390091,0.00021095,4]
[365757596,1749883118626,2517.26848002,0.0002,2]
[365757597,1749883118649,2482.73151998,0.0002,2]
[365757599,1749883133942,1454.28235568,0.0002,2]
[365757600,1749883149125,1284.11712434,0.0002,2]
[365757601,1749883149148,3715.88287566,0.0002,2]
[365757603,1749883164382,675.07679843,0.0002,2]
[365757605,1749883428031,211.36095011,0.00019981,2]
[365757607,1749883458180,1000.0,0.000246,120]
[365757608,1749883502201,618.8103758,0.0002,2]
[365757609,1749883502226,1194.74523198,0.0002,2]
[365757611,1749883539096,-345.5617896,0.00020034,2]
[365757612,1749883539118,-814.48784344,0.00020081,2]
[365757613,1749883541186,686.373502,0.00019857,2]
[365757614,1749883548427,177.65158058,0.00019562,2]
[365757615,1749883551077,192.17326379,0.00019562,2]
[365757617,1749883621312,2103.78716375,0.00018995,2]
[365757618,1749883631077,-498.28582126,0.00020081,2]
[365757619,1749883631098,-1596.08,0.00020178,2]
[365757620,1749883631119,-260.85315974,0.00020462,2]
[365757621,1749883631140,-335.04285262,0.00020995,2]
[365757622,1749883631164,-501.73629482,0.00021073,2]
[365757623,1749883631184,-501.08176068,0.00021073,2]
[365757624,1749883631208,-160.0,0.00021094,2]
[365757625,1749883631228,-167.075,0.00021094,2]
[365757626,1749883631248,-300.0,0.00021094,2]
[365757627,1749883631268,-430.0,0.00021095,4]
[365757628,1749883631287,-89.12515995,0.00021095,4]
[365757629,1749883636222,-370.87484005,0.00021095,4]
[365757630,1749883636244,-341.19534364,0.00021095,4]
[365757631,1749883640085,-98.80465636,0.00021095,4]
[365757632,1749883640106,-440.0,0.00021095,4]
[365757633,1749883640127,-460.0,0.00021095,4]
[365757634,1749883640148,-430.0,0.00021095,4]
[365757635,1749883640168,-437.80626799,0.00021095,4]
[365757636,1749883640188,-460.0,0.00021095,4]
[365757637,1749883640210,-97.65186274,0.00021095,4]
[365757639,1749883649082,-362.34813726,0.00021095,4]
[365757640,1749883649104,-298.72084415,0.00021095,4]
[365757641,1749883649126,-460.0,0.00021095,4]
[365757642,1749883649146,-341.96190903,0.00021095,4]
[365757643,1749883649168,-538.65255202,0.00021095,4]
[365757644,1749883649195,-15.63857379,0.00021095,4]
[365757665,1749883691747,213.928855,0.00013699,2]
[365757666,1749883692551,652.4714029,0.0002,2]
[365757667,1749883692575,2259.66986736,0.0002,2]
[365757669,1749883747120,-213.928855,0.00020187,2]
[365757670,1749883747148,-1575.77,0.00020302,2]
[365757671,1749883747171,-300.0,0.00020319,2]
[365757672,1749883747194,-158.64966626,0.0002032,2]
[365757673,1749883757130,-24741.35033374,0.0002032,2]
[365757674,1749883757152,-500.0,0.00021073,2]
[365757675,1749883757174,-500.0,0.00021094,2]
[365757676,1749883757197,-500.0,0.00021094,2]
[365757677,1749883757220,-93.91425343,0.00021094,2]
[365757678,1749883788717,1555.71,0.0002017,2]
[365757705,1749883832205,-300.0,0.00021093,2]
[365757708,1749883832215,-1144.47642021,0.00021094,2]
[365757710,1749883832224,-406.08574657,0.00021094,2]
[365757712,1749883832234,-455.0,0.00021094,2]
[365757714,1749883832243,-337.79148677,0.00021094,2]
[365757716,1749883832252,-500.0,0.00021094,2]
[365757718,1749883832261,-500.0,0.00021094,2]
[365757720,1749883832270,-500.0,0.00021094,2]
[365757722,1749883832279,-500.0,0.00021094,2]
[365757724,1749883832288,-500.0,0.00021094,2]
[365757726,1749883832297,-500.0,0.00021094,2]
[365757728,1749883832306,-463.27763364,0.00021094,2]
[365757730,1749883832316,-500.0,0.00021094,2]
[365757732,1749883832325,-500.0,0.00021094,2]
[365757734,1749883832334,-500.0,0.00021094,2]
[365757736,1749883832343,-266.10999337,0.00021094,2]
[365757738,1749883832352,-500.0,0.00021094,2]
[365757740,1749883832361,-500.0,0.00021094,2]
[365757742,1749883832369,-500.0,0.00021094,2]
[365757744,1749883832379,-500.0,0.00021094,2]
[365757745,1749883832389,-500.0,0.00021094,2]
[365757748,1749883832399,-500.0,0.00021094,2]
[365757750,1749883832409,-577.90456389,0.00021094,2]
[365757751,1749883832420,-500.0,0.00021094,2]
[365757754,1749883832429,-279.71860856,0.00021095,4]
[365757756,1749883832438,-253.78327231,0.00021095,4]
[365757757,1749883832447,-182.05085615,0.00021095,4]
[365757760,1749883832458,-405.25564573,0.00021095,4]
[365757773,1749883832574,-460.0,0.00021095,4]
[365757775,1749883832584,-460.0,0.00021095,4]
[365757777,1749883832593,-440.7665474,0.00021095,4]
[365757779,1749883832603,-460.0,0.00021095,4]
[365757781,1749883832612,-395.90355139,0.00021095,4]
[365757783,1749883832621,-460.0,0.00021095,4]
[365757785,1749883832630,-460.0,0.00021095,4]
[365757787,1749883832641,-430.0,0.00021095,4]
[365757789,1749883832650,-460.0,0.00021095,4]
[365757791,1749883832659,-410.0,0.00021095,4]
[365757793,1749883832668,-443.0221087,0.00021095,4]
[365757796,1749883832678,-440.0,0.00021095,4]
[365757797,1749883832687,-430.0,0.00021095,4]
[365757799,1749883832697,-460.0,0.00021095,4]
[365757802,1749883832706,-369.09932442,0.00021095,4]
[365757804,1749883832717,-440.0,0.00021095,4]
[365757806,1749883832726,-327.32609909,0.00021095,4]
[365757808,1749883832735,-440.0,0.00021095,4]
[365757810,1749883832744,-430.0,0.00021095,4]
[365757812,1749883832754,-380.16860411,0.00021095,4]
[365757814,1749883832763,-460.0,0.00021095,4]